Workbook

Sheet Registro
A1: TITULO | B1: ESTUDIO DE IMPACTO AMBIENTAL: PROCEDIMIENTO Y HERRAMIENTAS
A3: AUTORES | B3: ROBERTO PECHE GONZALEZ
B4: DOLORES ENCINAS MALAGON
B5: ZURIÑE GOMEZ DE BALUGERA LOPEZ DE ALDA
B6: MARIA ARRITOKIETA ORTUZAR IRAGORRI
A8: ISBN: | B8: 978-84-613-9696-2

Sheet 172-174
A1: nº de indicador: | B1: 172 | C1: función de transformación: | D1: CA=6,67E-03I | E1: 0<I<75
A2: Indicador: | B2: Media ponderada del valor de conservación de las distintas unidades de vegetación | D2: CA=(4E-04*I2) -(5E-02*I) +2 | E2: 75<I<100
A3: fórmula del indicador
A4: unidad del indicador:
A5: rango de valores del indicador: | B5: 0 - 100 | C5: valor del indicador | D5: 80
A6: Tipo de indicador | B6: 2 (T=0,25) | C6: calidad ambiental | D6: =IF(D5<0,"valor del indicador fuera de rango",IF(D5<=75,0.00667*D5,IF(D5<=100,(0.0004*(D5^2))-(0.05*D5)+2,"valor del indicador fuera rango"))) -> 0.560
A7: valor del indicador | B7: calidad ambiental | C7: representación de la función de transformación
A8: 0 | B8: =0.00667*A8 -> 0.000
A9: 10 | B9: 0.067
A10: 20 | B10: 0.133
A11: 30 | B11: 0.200
A12: =A11+5 -> 35 | B12: 0.233
A13: 40 | B13: 0.267
A14: 45 | B14: 0.300
A15: 50 | B15: 0.334
A16: 55 | B16: 0.367
A17: 60 | B17: 0.400
A18: 65 | B18: 0.434
A19: 70 | B19: 0.467
A20: 75 | B20: 0.500
A21: 80 | B21: =(0.0004*A21^2)-(0.05*A21)+2 -> 0.560
A22: =A21+5 -> 85 | B22: =(0.0004*A22^2)-(0.05*A22)+2 -> 0.640
A23: =A22+5 -> 90 | B23: =(0.0004*A23^2)-(0.05*A23)+2 -> 0.740
A24: 95 | B24: =(0.0004*A24^2)-(0.05*A24)+2 -> 0.860
A25: 100 | B25: =(0.0004*A25^2)-(0.05*A25)+2 -> 1.000
A28: nº de indicador: | B28: 173 | C28: función de transformación: | D28: y=-1E-04x2+2E-02x | E28: 0<x<100
A29: Indicador: | B29: Valor relativo de conservación, ponderado según las diferentes unidades de vegetación
A30: fórmula del indicador
A31: unidad del indicador:
A32: rango de valores del indicador: | B32: 0 - 100 | C32: valor del indicador | D32: 95
A33: Tipo de indicador | B33: 2 (T=0,25) | C33: calidad ambiental | D33: =IF(D32<0,"valor del indicador fuera de rango",IF(D32<=100,-0.0001*D32^2+0.02*D32,"valor del indicador fuera rango")) -> 0.998
A34: valor del indicador | B34: calidad ambiental | C34: representación de la función de transformación
A35: 0 | B35: =-0.0001*A35^2+0.02*A35 -> 0.000
A36: 10 | B36: =-0.0001*A36^2+0.02*A36 -> 0.190
A37: =A36+5 -> 15 | B37: 0.278
A38: 20 | B38: 0.360
A39: 25 | B39: 0.438
A40: 30 | B40: 0.510
A41: 35 | B41: 0.578
A42: 40 | B42: 0.640
A43: 45 | B43: 0.698
A44: 50 | B44: 0.750
A45: 55 | B45: 0.798
A46: 60 | B46: 0.840
A47: 65 | B47: 0.878
A48: 70 | B48: 0.910
A49: 75 | B49: 0.938
A50: 80 | B50: 0.960
A51: 85 | B51: 0.978
A52: 90 | B52: 0.990
A53: 100 | B53: 1.000
A56: nº de indicador: | B56: 174 | C56: función de transformación: | D56: y=-1E-04x2+2E-02x | E56: 0<x<100
A57: Indicador: | B57: % de variación de valor de conservación de las diferentes unidades de la vegetación
A58: fórmula del indicador
A59: unidad del indicador:
A60: rango de valores del indicador: | B60: 0 - 100 | C60: valor del indicador | D60: 95
A61: Tipo de indicador | B61: 2 (T=0,25) | C61: calidad ambiental | D61: =IF(D60<0,"valor del indicador fuera de rango",IF(D60<=100,-0.0001*D60^2+0.02*D60,"valor del indicador fuera rango")) -> 0.998
A62: valor del indicador | B62: calidad ambiental | C62: representación de la función de transformación
A63: 0 | B63: =-0.0001*A63^2+0.02*A63 -> 0.000
A64: 10 | B64: =-0.0001*A64^2+0.02*A64 -> 0.190
A65: =A64+5 -> 15 | B65: 0.278
A66: 20 | B66: 0.360
A67: 25 | B67: 0.438
A68: 30 | B68: 0.510
A69: 35 | B69: 0.578
A70: 40 | B70: 0.640
A71: 45 | B71: 0.698
A72: 50 | B72: 0.750
A73: 55 | B73: 0.798
A74: 60 | B74: 0.840
A75: 65 | B75: 0.878
A76: 70 | B76: 0.910
A77: 75 | B77: 0.938
A78: 80 | B78: 0.960
A79: 85 | B79: 0.978
A80: 90 | B80: 0.990
A81: 100 | B81: 1.000

Sheet 175-180
A1: nº de indicador: | B1: 175 | C1: función de transformación: | D1: y=1 | E1: (-100<x<0)
A2: Indicador: | B2: Nº de especies protegidas en relación a las condiciones naturales | D2: y=1E-04x2-2E-02x+1 | E2: 0<x<100
A3: fórmula del indicador
A4: unidad del indicador:
A5: rango de valores del indicador: | B5: -100 - 100 | C5: valor del indicador | D5: 70
A6: Tipo de indicador | B6: 2 (T=0,25) | C6: calidad ambiental | D6: =IF(D5<-100,"valor del indicador fuera de rango",IF(D5<=0,1,IF(D5<=100,0.0001*D5^2-0.02*D5+1,"valor del indicador fuera rango"))) -> 0.090
A7: valor del indicador | B7: calidad ambiental | C7: representación de la función de transformación
A8: -100 | B8: 1.000
A9: 80 | B9: 1.000
A10: 70 | B10: 1.000
A11: 60 | B11: 1.000
A12: 40 | B12: 1.000
A13: 20 | B13: 1.000
A14: 0 | B14: 1.000
A15: 10 | B15: =0.0001*A15^2-0.02*A15+1 -> 0.810
A16: 20 | B16: 0.640
A17: 30 | B17: 0.490
A18: 40 | B18: 0.360
A19: 50 | B19: 0.250
A20: 60 | B20: 0.160
A21: 70 | B21: 0.090
A22: 80 | B22: 0.040
A23: 90 | B23: 0.010
A24: 100 | B24: 0.000
A27: nº de indicador: | B27: 176 | C27: función de transformación: | D27: y=1 | E27: (-50<x<0)
A28: Indicador: | B28: Nº de especies protegidas en relación a las condiciones anteriores a la actuación | D28: y=-4E-04x2+1 | E28: 0<x<50
A29: fórmula del indicador
A30: unidad del indicador:
A31: rango de valores del indicador: | B31: -50 - 50 | C31: valor del indicador | D31: 20
A32: Tipo de indicador | B32: 2 (T=0,25) | C32: calidad ambiental | D32: =IF(D31<-50,"valor del indicador fuera de rango",IF(D31<=0,1,IF(D31<=50,-0.0004*D31^2+1,"valor del indicador fuera rango"))) -> 0.840
A33: valor del indicador | B33: calidad ambiental | C33: representación de la función de transformación
A34: -50 | B34: 1.000
A35: -40 | B35: 1.000
A36: =+A35+10 -> -30 | B36: 1.000
A37: -25 | B37: 1.000
A38: -20 | B38: 1.000
A39: -15 | B39: 1.000
A40: -10 | B40: 1.000
A41: -5 | B41: 1.000
A42: 0 | B42: =-0.0004*A42^2+1 -> 1.000
A43: =+A42+5 -> 5 | B43: 0.990
A44: 10 | B44: 0.960
A45: 15 | B45: 0.910
A46: 20 | B46: 0.840
A47: 25 | B47: 0.750
A48: 30 | B48: 0.640
A49: 35 | B49: 0.510
A50: 40 | B50: 0.360
A51: 45 | B51: 0.190
A52: 50 | B52: 0.000
A55: nº de indicador: | B55: 177 | C55: función de transformación: | D55: y=1 | E55: (-100<x<0)
A56: Indicador: | B56: Nº de especies protegidas en relación a las condiciones naturales y ponderadas según la importancia de la categoría de protección | D56: y=1E-04x2-2E-02x+1 | E56: 0<x<100
A57: fórmula del indicador
A58: unidad del indicador:
A59: rango de valores del indicador: | B59: -100 - 100 | C59: valor del indicador | D59: 20
A60: Tipo de indicador | B60: 2 (T=0,25) | C60: calidad ambiental | D60: =IF(D59<-100,"valor del indicador fuera de rango",IF(D59<=0,1,IF(D59<=100,0.0001*D59^2-0.02*D59+1,"valor del indicador fuera rango"))) -> 0.640
A61: valor del indicador | B61: calidad ambiental | C61: representación de la función de transformación
A62: -100 | B62: 1.000
A63: =+A62+8 -> -92 | B63: 1.000
A64: =+A63+8 -> -84 | B64: 1.000
A65: -76 | B65: 1.000
A66: -68 | B66: 1.000
A67: -60 | B67: 1.000
A68: -52 | B68: 1.000
A69: -44 | B69: 1.000
A70: -36 | B70: 1.000
A71: -28 | B71: 1.000
A72: -20 | B72: 1.000
A73: -12 | B73: 1.000
A74: -4 | B74: 1.000
A75: 0 | B75: 1.000
A76: 4 | B76: =0.0001*A76^2-0.02*A76+1 -> 0.922
A77: 12 | B77: 0.774
A78: 20 | B78: 0.640
A79: 28 | B79: 0.518
A80: 36 | B80: 0.410
A81: 44 | B81: 0.314
A82: 52 | B82: 0.230
A83: 60 | B83: 0.160
A84: 68 | B84: 0.102
A85: 76 | B85: 0.058
A86: 84 | B86: 0.026
A87: 92 | B87: 0.006
A88: 95 | B88: 0.002
A89: =+A87+8 -> 100 | B89: 0.000
A92: nº de indicador: | B92: 178 | C92: función de transformación: | D92: y=1 | E92: (-50<x<0)
A93: Indicador: | B93: Nº de especies protegidas en relación a las condiciones anteriores a la actuación, ponderando según la importancia de la categoría de protección | D93: y=-4E-04x2+1 | E93: 0<x<50
A94: fórmula del indicador
A95: unidad del indicador:
A96: rango de valores del indicador: | B96: -50 - 50 | C96: valor del indicador | D96: 30
A97: Tipo de indicador | B97: 2 (T=0,25) | C97: calidad ambiental | D97: =IF(D96<-50,"valor del indicador fuera de rango",IF(D96<=0,1,IF(D96<=50,-0.0004*D96^2+1,"valor del indicador fuera rango"))) -> 0.640
A98: valor del indicador | B98: calidad ambiental | C98: representación de la función de transformación
A99: -50 | B99: 1.000
A100: =+A99+4 -> -46 | B100: 1.000
A101: =+A100+4 -> -42 | B101: 1.000
A102: -38 | B102: 1.000
A103: -34 | B103: 1.000
A104: -30 | B104: 1.000
A105: -26 | B105: 1.000
A106: -22 | B106: 1.000
A107: -18 | B107: 1.000
A108: -14 | B108: 1.000
A109: -10 | B109: 1.000
A110: -6 | B110: 1.000
A111: -2 | B111: 1.000
A112: 0 | B112: 1.000
A113: 2 | B113: =-0.0004*A113^2+1 -> 0.998
A114: 4 | B114: 0.994
A115: 6 | B115: 0.986
A116: 8 | B116: 0.974
A117: 10 | B117: 0.960
A118: 14 | B118: 0.922
A119: 18 | B119: 0.870
A120: 22 | B120: 0.806
A121: 26 | B121: 0.730
A122: 30 | B122: 0.640
A123: 34 | B123: 0.538
A124: 38 | B124: 0.422
A125: 42 | B125: 0.294
A126: 46 | B126: 0.154
A127: 50 | B127: 0.000
A130: nº de indicador: | B130: 179 | C130: función de transformación: | D130: y=1 | E130: (-100<x<0)
A131: Indicador: | B131: Nº de especies protegidas en relación a las condiciones naturales y ponderadas según la importancia de la categoría de protección y su densidad | D131: y=1E-04x2-2E-02x+1 | E131: 0<x<100
A132: fórmula del indicador
A133: unidad del indicador:
A134: rango de valores del indicador: | B134: -100 - 100 | C134: valor del indicador | D134: 20
A135: Tipo de indicador | B135: 2 (T=0,25) | C135: calidad ambiental | D135: =IF(D134<-100,"valor del indicador fuera de rango",IF(D134<=0,1,IF(D134<=100,0.0001*D134^2-0.02*D134+1,"valor del indicador fuera rango"))) -> 0.640
A136: valor del indicador | B136: calidad ambiental | C136: representación de la función de transformación
A137: -100 | B137: 1.000
A138: =+A137+8 -> -92 | B138: 1.000
A139: =+A138+8 -> -84 | B139: 1.000
A140: -76 | B140: 1.000
A141: -68 | B141: 1.000
A142: -60 | B142: 1.000
A143: -52 | B143: 1.000
A144: -44 | B144: 1.000
A145: -36 | B145: 1.000
A146: -28 | B146: 1.000
A147: -20 | B147: 1.000
A148: -12 | B148: 1.000
A149: -4 | B149: 1.000
A150: 0 | B150: 1.000
A151: 4 | B151: =0.0001*A151^2-0.02*A151+1 -> 0.922
A152: =+A151+8 -> 12 | B152: 0.774
A153: 20 | B153: 0.640
A154: 28 | B154: 0.518
A155: 36 | B155: 0.410
A156: 44 | B156: 0.314
A157: 52 | B157: 0.230
A158: 60 | B158: 0.160
A159: 68 | B159: 0.102
A160: 76 | B160: 0.058
A161: 84 | B161: 0.026
A162: 92 | B162: 0.006
A163: 95 | B163: 0.002
A164: =+A162+8 -> 100 | B164: 0.000
A167: nº de indicador: | B167: 180 | C167: función de transformación: | D167: y=1 | E167: (-50<x<0)
A168: Indicador: | B168: Nº de especies protegidas en relación a las condiciones anteriores a la acción, ponderando según la importancia de la categoría de protección y su densidad | D168: y=-4E-04x2+1 | E168: 0<x<50
A169: fórmula del indicador
A170: unidad del indicador:
A171: rango de valores del indicador: | B171: -50 - 50 | C171: valor del indicador | D171: 30
A172: Tipo de indicador | B172: 2 (T=0,25) | C172: calidad ambiental | D172: =IF(D171<-50,"valor del indicador fuera de rango",IF(D171<=0,1,IF(D171<=50,-0.0004*D171^2+1,"valor del indicador fuera rango"))) -> 0.640
A173: valor del indicador | B173: calidad ambiental | C173: representación de la función de transformación
A174: -50 | B174: 1.000
A175: =+A174+4 -> -46 | B175: 1.000
A176: =+A175+4 -> -42 | B176: 1.000
A177: -38 | B177: 1.000
A178: -34 | B178: 1.000
A179: -30 | B179: 1.000
A180: -26 | B180: 1.000
A181: -22 | B181: 1.000
A182: -18 | B182: 1.000
A183: -14 | B183: 1.000
A184: -10 | B184: 1.000
A185: -6 | B185: 1.000
A186: -2 | B186: 1.000
A187: 0 | B187: 1.000
A188: 2 | B188: =-0.0004*A188^2+1 -> 0.998
A189: 4 | B189: 0.994
A190: 6 | B190: 0.986
A191: 8 | B191: 0.974
A192: 10 | B192: 0.960
A193: =+A192+4 -> 14 | B193: 0.922
A194: 18 | B194: 0.870
A195: 22 | B195: 0.806
A196: 26 | B196: 0.730
A197: 30 | B197: 0.640
A198: 34 | B198: 0.538
A199: 38 | B199: 0.422
A200: 42 | B200: 0.294
A201: 46 | B201: 0.154
A202: 50 | B202: 0.000

Sheet 181-183
A1: nº de indicador: | B1: 181 | C1: función de transformación: | D1: CA=6,67E-03I | E1: 0<I<75
A2: Indicador: | B2: Media ponderada del valor de conservación de las distintas unidades de vegetación | D2: CA=(4E-04*I2) -(5E-02*I) +2 | E2: 75<I<100
A3: fórmula del indicador
A4: unidad del indicador:
A5: rango de valores del indicador: | B5: 0 - 100 | C5: valor del indicador | D5: 80
A6: Tipo de indicador | B6: 2 (T=0,25) | C6: calidad ambiental | D6: =IF(D5<0,"valor del indicador fuera de rango",IF(D5<=75,0.00667*D5,IF(D5<=100,(0.0004*(D5^2))-(0.05*D5)+2,"valor del indicador fuera rango"))) -> 0.560
A7: valor del indicador | B7: calidad ambiental | C7: representación de la función de transformación
A8: 0 | B8: =0.00667*A8 -> 0.000
A9: 10 | B9: 0.067
A10: 20 | B10: 0.133
A11: 30 | B11: 0.200
A12: =A11+5 -> 35 | B12: 0.233
A13: 40 | B13: 0.267
A14: 45 | B14: 0.300
A15: 50 | B15: 0.334
A16: 55 | B16: 0.367
A17: 60 | B17: 0.400
A18: 65 | B18: 0.434
A19: 70 | B19: 0.467
A20: 75 | B20: 0.500
A21: 80 | B21: =(0.0004*A21^2)-(0.05*A21)+2 -> 0.560
A22: =A21+5 -> 85 | B22: =(0.0004*A22^2)-(0.05*A22)+2 -> 0.640
A23: =A22+5 -> 90 | B23: =(0.0004*A23^2)-(0.05*A23)+2 -> 0.740
A24: 95 | B24: =(0.0004*A24^2)-(0.05*A24)+2 -> 0.860
A25: 100 | B25: =(0.0004*A25^2)-(0.05*A25)+2 -> 1.000
A28: nº de indicador: | B28: 182 | C28: función de transformación: | D28: y=-1E-04x2+2E-02x | E28: 0<x<100
A29: Indicador: | B29: Valor relativo de conservación, ponderado según las diferentes unidades de vegetación
A30: fórmula del indicador
A31: unidad del indicador:
A32: rango de valores del indicador: | B32: 0 - 100 | C32: valor del indicador | D32: 15
A33: Tipo de indicador | B33: 2 (T=0,25) | C33: calidad ambiental | D33: =IF(D32<0,"valor del indicador fuera de rango",IF(D32<=100,-0.0001*D32^2+0.02*D32,"valor del indicador fuera rango")) -> 0.278
A34: valor del indicador | B34: calidad ambiental | C34: representación de la función de transformación
A35: 0 | B35: =-0.0001*A35^2+0.02*A35 -> 0.000
A36: 5 | B36: =-0.0001*A36^2+0.02*A36 -> 0.098
A37: =A36+5 -> 10 | B37: 0.190
A38: 15 | B38: 0.278
A39: 20 | B39: 0.360
A40: 25 | B40: 0.438
A41: 30 | B41: 0.510
A42: 35 | B42: 0.578
A43: 40 | B43: 0.640
A44: 45 | B44: 0.698
A45: 50 | B45: 0.750
A46: 55 | B46: 0.798
A47: 60 | B47: 0.840
A48: 65 | B48: 0.878
A49: 70 | B49: 0.910
A50: 75 | B50: 0.938
A51: 80 | B51: 0.960
A52: =A51+5 -> 85 | B52: 0.978
A53: 90 | B53: 0.990
A54: 100 | B54: 1.000
A57: nº de indicador: | B57: 183 | C57: función de transformación: | D57: y=-1E-04x2+2E-02x | E57: 0<x<100
A58: Indicador: | B58: % de variación del valor de conservación de las diferentes unidades de vegetación
A59: fórmula del indicador
A60: unidad del indicador:
A61: rango de valores del indicador: | B61: 0 - 100 | C61: valor del indicador | D61: 15
A62: Tipo de indicador | B62: 2 (T=0,25) | C62: calidad ambiental | D62: =IF(D61<0,"valor del indicador fuera de rango",IF(D61<=100,-0.0001*D61^2+0.02*D61,"valor del indicador fuera rango")) -> 0.278
A63: valor del indicador | B63: calidad ambiental | C63: representación de la función de transformación
A64: 0 | B64: =-0.0001*A64^2+0.02*A64 -> 0.000
A65: 5 | B65: =-0.0001*A65^2+0.02*A65 -> 0.098
A66: =A65+5 -> 10 | B66: 0.190
A67: 15 | B67: 0.278
A68: 20 | B68: 0.360
A69: 25 | B69: 0.438
A70: 30 | B70: 0.510
A71: 35 | B71: 0.578
A72: 40 | B72: 0.640
A73: 45 | B73: 0.698
A74: 50 | B74: 0.750
A75: 55 | B75: 0.798
A76: 60 | B76: 0.840
A77: 65 | B77: 0.878
A78: 70 | B78: 0.910
A79: 75 | B79: 0.938
A80: 80 | B80: 0.960
A81: 85 | B81: 0.978
A82: 90 | B82: 0.990
A83: 100 | B83: 1.000

Sheet 184-186
A1: nº de indicador: | B1: 184 | C1: función de transformación: | D1: CA=6,67E-03I | E1: 0<I<75
A2: Indicador: | B2: Media ponderada del valor de conservación de las distintas unidades de vegetación | D2: CA=(4E-04*I2) -(5E-02*I) +2 | E2: 75<I<100
A3: fórmula del indicador
A4: unidad del indicador:
A5: rango de valores del indicador: | B5: 0 - 100 | C5: valor del indicador | D5: 75
A6: Tipo de indicador | B6: 2 (T=0,25) | C6: calidad ambiental | D6: =IF(D5<0,"valor del indicador fuera de rango",IF(D5<=75,0.00667*D5,IF(D5<=100,(0.0004*(D5^2))-(0.05*D5)+2,"valor del indicador fuera rango"))) -> 0.500
A7: valor del indicador | B7: calidad ambiental | C7: representación de la función de transformación
A8: 0 | B8: =0.00667*A8 -> 0.000
A9: 10 | B9: 0.067
A10: 20 | B10: 0.133
A11: 30 | B11: 0.200
A12: =A11+5 -> 35 | B12: 0.233
A13: 40 | B13: 0.267
A14: 45 | B14: 0.300
A15: 50 | B15: 0.334
A16: 55 | B16: 0.367
A17: 60 | B17: 0.400
A18: 65 | B18: 0.434
A19: 70 | B19: 0.467
A20: 75 | B20: 0.500
A21: 80 | B21: =(0.0004*A21^2)-(0.05*A21)+2 -> 0.560
A22: =A21+5 -> 85 | B22: =(0.0004*A22^2)-(0.05*A22)+2 -> 0.640
A23: =A22+5 -> 90 | B23: =(0.0004*A23^2)-(0.05*A23)+2 -> 0.740
A24: 95 | B24: =(0.0004*A24^2)-(0.05*A24)+2 -> 0.860
A25: 100 | B25: =(0.0004*A25^2)-(0.05*A25)+2 -> 1.000
A28: nº de indicador: | B28: 185 | C28: función de transformación: | D28: y=-1E-04x2+2E-02x | E28: 0<x<100
A29: Indicador: | B29: Valor relativo del valor de conservación de las diferentes unidades de vegetación
A30: fórmula del indicador
A31: unidad del indicador:
A32: rango de valores del indicador: | B32: 0 - 100 | C32: valor del indicador | D32: 20
A33: Tipo de indicador | B33: 2 (T=0,25) | C33: calidad ambiental | D33: =IF(D32<0,"valor del indicador fuera de rango",IF(D32<=100,-0.0001*D32^2+0.02*D32,"valor del indicador fuera rango")) -> 0.360
A34: valor del indicador | B34: calidad ambiental | C34: representación de la función de transformación
A35: 0 | B35: =-0.0001*A35^2+0.02*A35 -> 0.000
A36: 5 | B36: =-0.0001*A36^2+0.02*A36 -> 0.098
A37: =A36+5 -> 10 | B37: 0.190
A38: 15 | B38: 0.278
A39: 20 | B39: 0.360
A40: 25 | B40: 0.438
A41: 30 | B41: 0.510
A42: 35 | B42: 0.578
A43: 40 | B43: 0.640
A44: 45 | B44: 0.698
A45: 50 | B45: 0.750
A46: 55 | B46: 0.798
A47: 60 | B47: 0.840
A48: 65 | B48: 0.878
A49: 70 | B49: 0.910
A50: 75 | B50: 0.938
A51: 80 | B51: 0.960
A52: 85 | B52: 0.978
A53: 90 | B53: 0.990
A54: 100 | B54: 1.000
A57: nº de indicador: | B57: 186 | C57: función de transformación: | D57: y=-1E-04x2+2E-02x | E57: 0<x<100
A58: Indicador: | B58: % de variación del valor de conservación de las diferentes unidades de vegetación
A59: fórmula del indicador
A60: unidad del indicador:
A61: rango de valores del indicador: | B61: 0 - 100 | C61: valor del indicador | D61: 20
A62: Tipo de indicador | B62: 2 (T=0,25) | C62: calidad ambiental | D62: =IF(D61<0,"valor del indicador fuera de rango",IF(D61<=100,-0.0001*D61^2+0.02*D61,"valor del indicador fuera rango")) -> 0.360
A63: valor del indicador | B63: calidad ambiental | C63: representación de la función de transformación
A64: 0 | B64: =-0.0001*A64^2+0.02*A64 -> 0.000
A65: 5 | B65: =-0.0001*A65^2+0.02*A65 -> 0.098
A66: =A65+5 -> 10 | B66: 0.190
A67: 15 | B67: 0.278
A68: 20 | B68: 0.360
A69: 25 | B69: 0.438
A70: 30 | B70: 0.510
A71: 35 | B71: 0.578
A72: 40 | B72: 0.640
A73: 45 | B73: 0.698
A74: 50 | B74: 0.750
A75: 55 | B75: 0.798
A76: 60 | B76: 0.840
A77: 65 | B77: 0.878
A78: 70 | B78: 0.910
A79: 75 | B79: 0.938
A80: 80 | B80: 0.960
A81: 85 | B81: 0.978
A82: 90 | B82: 0.990
A83: 100 | B83: 1.000

Sheet 187-189
A1: nº de indicador: | B1: 187 | C1: función de transformación: | D1: CA=6,67E-03I | E1: 0<I<75
A2: Indicador: | B2: Media ponderada del valor de conservación de las distintas unidades de vegetación | D2: CA=(4E-04*I2) -(5E-02*I) +2 | E2: 75<I<100
A3: fórmula del indicador
A4: unidad del indicador:
A5: rango de valores del indicador: | B5: 0 - 100 | C5: valor del indicador | D5: 75
A6: Tipo de indicador | B6: 2 (T=0,25) | C6: calidad ambiental | D6: =IF(D5<0,"valor del indicador fuera de rango",IF(D5<=75,0.00667*D5,IF(D5<=100,(0.0004*(D5^2))-(0.05*D5)+2,"valor del indicador fuera rango"))) -> 0.500
A7: valor del indicador | B7: calidad ambiental | C7: representación de la función de transformación
A8: 0 | B8: =0.00667*A8 -> 0.000
A9: 10 | B9: 0.067
A10: 20 | B10: 0.133
A11: 30 | B11: 0.200
A12: =A11+5 -> 35 | B12: 0.233
A13: 40 | B13: 0.267
A14: 45 | B14: 0.300
A15: 50 | B15: 0.334
A16: 55 | B16: 0.367
A17: 60 | B17: 0.400
A18: 65 | B18: 0.434
A19: 70 | B19: 0.467
A20: 75 | B20: 0.500
A21: 80 | B21: =(0.0004*A21^2)-(0.05*A21)+2 -> 0.560
A22: =A21+5 -> 85 | B22: =(0.0004*A22^2)-(0.05*A22)+2 -> 0.640
A23: =A22+5 -> 90 | B23: =(0.0004*A23^2)-(0.05*A23)+2 -> 0.740
A24: =A23+5 -> 95 | B24: =(0.0004*A24^2)-(0.05*A24)+2 -> 0.860
A25: =A24+5 -> 100 | B25: =(0.0004*A25^2)-(0.05*A25)+2 -> 1.000
A28: nº de indicador: | B28: 188 | C28: función de transformación: | D28: y=-1E-04x2+2E-02x | E28: 0<x<100
A29: Indicador: | B29: Valor relativo del valor de conservación de las diferentes unidades de vegetación
A30: fórmula del indicador
A31: unidad del indicador:
A32: rango de valores del indicador: | B32: 0 - 100 | C32: valor del indicador | D32: 20
A33: Tipo de indicador | B33: 2 (T=0,25) | C33: calidad ambiental | D33: =IF(D32<0,"valor del indicador fuera de rango",IF(D32<=100,-0.0001*D32^2+0.02*D32,"valor del indicador fuera rango")) -> 0.360
A34: valor del indicador | B34: calidad ambiental | C34: representación de la función de transformación
A35: 0 | B35: =-0.0001*A35^2+0.02*A35 -> 0.000
A36: 5 | B36: 0.098
A37: =A36+5 -> 10 | B37: 0.190
A38: 15 | B38: 0.278
A39: 20 | B39: 0.360
A40: 25 | B40: 0.438
A41: 30 | B41: 0.510
A42: 35 | B42: 0.578
A43: 40 | B43: 0.640
A44: 45 | B44: 0.698
A45: 50 | B45: 0.750
A46: 55 | B46: 0.798
A47: 60 | B47: 0.840
A48: 65 | B48: 0.878
A49: 70 | B49: 0.910
A50: 75 | B50: 0.938
A51: 80 | B51: 0.960
A52: 85 | B52: 0.978
A53: 90 | B53: 0.990
A54: 100 | B54: 1.000
A57: nº de indicador: | B57: 189 | C57: función de transformación: | D57: y=-1E-04x2+2E-02x | E57: 0<x<100
A58: Indicador: | B58: % de variación del valor de conservación de las diferentes unidades de vegetación
A59: fórmula del indicador
A60: unidad del indicador:
A61: rango de valores del indicador: | B61: 0 - 100 | C61: valor del indicador | D61: 20
A62: Tipo de indicador | B62: 2 (T=0,25) | C62: calidad ambiental | D62: =IF(D61<0,"valor del indicador fuera de rango",IF(D61<=100,-0.0001*D61^2+0.02*D61,"valor del indicador fuera rango")) -> 0.360
A63: valor del indicador | B63: calidad ambiental | C63: representación de la función de transformación
A64: 0 | B64: =-0.0001*A64^2+0.02*A64 -> 0.000
A65: 5 | B65: 0.098
A66: =A65+5 -> 10 | B66: 0.190
A67: 15 | B67: 0.278
A68: 20 | B68: 0.360
A69: 25 | B69: 0.438
A70: 30 | B70: 0.510
A71: 35 | B71: 0.578
A72: 40 | B72: 0.640
A73: 45 | B73: 0.698
A74: 50 | B74: 0.750
A75: 55 | B75: 0.798
A76: 60 | B76: 0.840
A77: 65 | B77: 0.878
A78: 70 | B78: 0.910
A79: 75 | B79: 0.938
A80: 80 | B80: 0.960
A81: 85 | B81: 0.978
A82: 90 | B82: 0.990
A83: 100 | B83: 1.000

Sheet 190-191
A1: nº de indicador: | B1: 190 | C1: función de transformación: | D1: CA=(-0,01)*I+1 | E1: 0<I<100
A2: Indicador: | B2: % de variación del valor de conservación de las diferentes unidades de vegetación
A3: fórmula del indicador
A4: unidad del indicador:
A5: rango de valores del indicador: | B5: 0 - 100 | C5: valor del indicador | D5: 40
A6: Tipo de indicador | B6: 2 (T=0,25) | C6: calidad ambiental | D6: =IF(D5<0,"valor del indicador fuera de rango",IF(D5<=100,-0.01*(D5)+1)) -> 0.600
A7: valor del indicador | B7: calidad ambiental | C7: representación de la función de transformación
A8: 0 | B8: =(-0.01)*(A8)+1 -> 1.00
A9: 10 | B9: 0.90
A10: =A9+5 -> 15 | B10: 0.85
A11: 20 | B11: 0.80
A12: 25 | B12: 0.75
A13: 30 | B13: 0.70
A14: 35 | B14: 0.65
A15: 40 | B15: 0.60
A16: 45 | B16: 0.55
A17: 50 | B17: 0.50
A18: 55 | B18: 0.45
A19: 60 | B19: 0.40
A20: 65 | B20: 0.35
A21: 70 | B21: 0.30
A22: 75 | B22: 0.25
A23: 80 | B23: 0.20
A24: 85 | B24: 0.15
A25: 90 | B25: 0.10
A26: 100 | B26: 0.00
A29: nº de indicador: | B29: 191 | C29: función de transformación: | D29: CA=(-0,01)*I+1 | E29: 0<I<100
A30: Indicador: | B30: % de variación de praderas y pastizales, ponderados según su productividad
A31: fórmula del indicador
A32: unidad del indicador:
A33: rango de valores del indicador: | B33: 0 - 100 | C33: valor del indicador | D33: 95
A34: Tipo de indicador | B34: 2 (T=0,25) | C34: calidad ambiental | D34: =-0.01*D33+1 -> 0.050
A35: valor del indicador | B35: calidad ambiental | C35: representación de la función de transformación
A36: 0 | B36: =(-0.01)*(A36)+1 -> 1.00
A37: 10 | B37: 0.90
A38: =A37+5 -> 15 | B38: 0.85
A39: 20 | B39: 0.80
A40: 25 | B40: 0.75
A41: 30 | B41: 0.70
A42: 35 | B42: 0.65
A43: 40 | B43: 0.60
A44: 45 | B44: 0.55
A45: 50 | B45: 0.50
A46: 55 | B46: 0.45
A47: 60 | B47: 0.40
A48: 65 | B48: 0.35
A49: 70 | B49: 0.30
A50: 75 | B50: 0.25
A51: 80 | B51: 0.20
A52: 85 | B52: 0.15
A53: 90 | B53: 0.10
A54: 95 | B54: 0.05
A55: 100 | B55: 0.00

Sheet 192
A1: nº de indicador: | B1: 192 | C1: función de transformación: | D1: CA=0,0133x | E1: 0<x<60
A2: Indicador: | B2: % de variación de la superficie de cultivos | D2: CA=-0,0005x^2+0,08x-2,2 | E2: 60<x<90
A3: fórmula del indicador | D3: CA=0,0005x^2-0,1x+5,9 | E3: 90>x>100
A4: unidad del indicador:
A5: rango de valores del indicador: | B5: 0 - 100 | C5: valor del indicador | D5: 95
A6: Tipo de indicador | B6: 2 (T=0,25) | C6: calidad ambiental | D6: =IF(D5<0,"valor del indicador fuera de rango",IF(D5<=60,0.0133*D5,IF(D5<=90,-0.0005*D5^2+0.08*D5-2.2,IF(D5<=100,0.0005*D5^2-0.1*D5+5.9,"valor del indicador fuera rango")))) -> 0.913
A7: valor del indicador | B7: calidad ambiental | C7: representación de la función de transformación
A8: 0 | B8: =0.0133*A8 -> 0.000
A9: 10 | B9: =0.0133*A9 -> 0.133
A10: 20 | B10: 0.266
A11: =+A10+5 -> 25 | B11: 0.333
A12: 30 | B12: 0.399
A13: 35 | B13: 0.466
A14: 40 | B14: 0.532
A15: 45 | B15: 0.599
A16: 50 | B16: 0.665
A17: 55 | B17: 0.732
A18: 60 | B18: =-0.0005*(A18^2)+0.08*A18-2.2 -> 0.800
A19: 65 | B19: 0.888
A20: 70 | B20: 0.950
A21: 75 | B21: 0.988
A22: 80 | B22: 1.000
A23: 85 | B23: 0.987
A24: 90 | B24: =0.0005*(A24^2)-0.1*A24+5.9 -> 0.950
A25: 95 | B25: =0.0005*(A25^2)-0.1*A25+5.9 -> 0.913
A26: 100 | B26: =0.0005*(A26^2)-0.1*A26+5.9 -> 0.900

Sheet 193-194
A1: nº de indicador: | B1: 193 | C1: función de transformación: | D1: y=1 | E1: (-100<x<0)
A2: Indicador: | B2: Nº de ejemplares catalogados en relacion a las condiciones anteriores a la actuación | D2: y=1E-04x2-2E-02x+1 | E2: 0<x<100
A3: fórmula del indicador
A4: unidad del indicador:
A5: rango de valores del indicador: | B5: -100 - 100 | C5: valor del indicador | D5: 24
A6: Tipo de indicador | B6: 2 (T=0,25) | C6: calidad ambiental | D6: =IF(D5<-100,"valor del indicador fuera de rango",IF(D5<=0,1,IF(D5<=100,0.0001*D5^2-0.02*D5+1,"valor del indicador fuera rango"))) -> 0.578
A7: valor del indicador | B7: calidad ambiental | C7: representación de la función de transformación
A8: -100 | B8: 1.000
A9: =+A8+12 -> -88 | B9: 1.000
A10: =+A9+12 -> -76 | B10: 1.000
A11: -64 | B11: 1.000
A12: -52 | B12: 1.000
A13: -40 | B13: 1.000
A14: -28 | B14: 1.000
A15: -16 | B15: 1.000
A16: 0 | B16: 1.000
A17: 12 | B17: =0.0001*A17^2-0.02*A17+1 -> 0.774
A18: 24 | B18: 0.578
A19: 36 | B19: 0.410
A20: 48 | B20: 0.270
A21: 60 | B21: 0.160
A22: 72 | B22: 0.078
A23: 84 | B23: 0.026
A24: 96 | B24: 0.002
A25: 100 | B25: 0.000
A28: nº de indicador: | B28: 194 | C28: función de transformación: | D28: y=1 | E28: (-100<x<0)
A29: Indicador: | B29: Nº de ejemplares catalogados en la relación a las condiciones anteriores a la actuación, ponderado según su valor de conservación | D29: y=1E-04x2-2E-02x+1 | E29: 0<x<100
A30: fórmula del indicador
A31: unidad del indicador:
A32: rango de valores del indicador: | B32: -100 - 100 | C32: valor del indicador | D32: 24
A33: Tipo de indicador | B33: 2 (T=0,25) | C33: calidad ambiental | D33: =IF(D32<-100,"valor del indicador fuera de rango",IF(D32<=0,1,IF(D32<=100,0.0001*D32^2-0.02*D32+1,"valor del indicador fuera rango"))) -> 0.578
A34: valor del indicador | B34: calidad ambiental | C34: representación de la función de transformación
A35: -100 | B35: 1.000
A36: =+A35+12 -> -88 | B36: 1.000
A37: =+A36+12 -> -76 | B37: 1.000
A38: -64 | B38: 1.000
A39: -52 | B39: 1.000
A40: -40 | B40: 1.000
A41: -28 | B41: 1.000
A42: -16 | B42: 1.000
A43: 0 | B43: 1.000
A44: =+A43+12 -> 12 | B44: =0.0001*A44^2-0.02*A44+1 -> 0.774
A45: 24 | B45: 0.578
A46: 36 | B46: 0.410
A47: 48 | B47: 0.270
A48: 60 | B48: 0.160
A49: 72 | B49: 0.078
A50: 84 | B50: 0.026
A51: 90 | B51: 0.010
A52: =+A50+12 -> 96 | B52: 0.002
A53: 100 | B53: 0.000
